bitfinex-derivatives/quotes_ETHF0:USTF0_20250405
["timestamp","ask_amount","ask_price","bid_price","bid_amount"]
[1743825692915,3.27728,1812.3,1812.2,0.7657]
[1743825693410,1.10406,1812.2,1812.0,1.3865]
[1743825693602,2.56976,1812.2,1812.0,1.3865]
[1743825693806,2.209,1812.1,1812.0,1.3865]
[1743825694413,2.209,1812.1,1811.9,3.2078]
[1743825694713,2.2541,1812.0,1811.9,3.2078]
[1743825696110,2.2541,1812.0,1811.9,4.6377]
[1743825696723,2.2541,1812.0,1811.9,3.2078]
[1743825696935,2.2541,1812.0,1811.7,1.11258811]
[1743825697214,1.4772,1811.9,1811.7,1.11258811]
[1743825697415,1.4772,1811.9,1811.8,1.5104]
[1743825698713,1.4772,1811.9,1811.8,2.61469]
[1743825699117,0.7402,1812.0,1811.8,2.61469]
[1743825699319,0.7402,1812.0,1811.9,1.5104]
[1743825700213,2.1425,1812.0,1811.9,1.5104]
[1743825710520,2.1425,1812.0,1811.8,1.10429]
[1743825710722,2.284,1811.9,1811.8,2.58309]
[1743825711725,2.284,1811.9,1811.8,3.27692343]
[1743825714126,0.7402,1812.0,1811.8,3.27692343]
[1743825714314,0.7402,1812.0,1811.9,2.2678]
[1743825714628,0.7402,1812.0,1811.9,2.96163343]
[1743825716426,2.1743,1812.0,1811.9,2.96163343]
[1743825717527,2.1743,1812.0,1811.9,0.69383343]
[1743825718030,2.1743,1812.0,1811.8,2.56523]
[1743825718230,2.1699,1811.9,1811.8,1.461]
[1743825718627,2.1699,1811.9,1811.8,3.26096546]
[1743825722648,2.1699,1811.9,1811.8,4.02138402]
[1743825723047,2.1699,1811.9,1811.8,3.26096546]
[1743825723346,2.1699,1811.9,1811.8,4.02143853]
[1743825723946,2.1699,1811.9,1811.8,3.26096546]
[1743825724244,2.1699,1811.9,1811.8,4.02142832]
[1743825725138,2.1699,1811.9,1811.8,4.02148392]
[1743825728349,0.7358,1811.9,1811.8,4.02148392]
[1743825728845,0.7358,1811.9,1811.8,4.02151413]
[1743825730846,0.7358,1811.9,1811.8,4.02151185]
[1743825732148,0.7358,1811.9,1811.8,3.26096546]
[1743825733452,0.7358,1811.9,1811.8,2.15667546]
[1743825733956,0.7358,1811.9,1811.8,3.26096546]
[1743825737355,0.7358,1811.9,1811.8,2.15667546]
[1743825739457,0.7358,1811.9,1811.8,0.69567546]
[1743825739655,5.77123,1811.9,1811.8,0.61216412]
[1743825740158,1.10429,1811.8,1811.7,0.00826811]
[1743825740451,9.23929,1811.8,1811.7,0.00826811]
[1743825740653,11.73929,1811.8,1811.7,0.00826811]
[1743825741958,9.23929,1811.8,1811.7,0.00826811]
[1743825743757,11.73929,1811.8,1811.7,0.00826811]
[1743825745159,9.23929,1811.8,1811.7,0.00826811]
[1743825749064,6.03149,1811.8,1811.7,0.00826811]
[1743825749261,9.23929,1811.8,1811.7,0.00826811]
[1743825752162,4.31209,1811.8,1811.7,0.00826811]
[1743825752365,6.7048,1811.8,1811.7,0.00826811]
[1743825752866,7.80909,1811.8,1811.7,0.00826811]
[1743825753058,6.7048,1811.8,1811.7,1.11261811]
[1743825753966,6.7048,1811.8,1811.7,0.00826811]
[1743825754463,6.7048,1811.8,1811.7,1.46466811]
[1743825754663,7.80909,1811.8,1811.7,1.46466811]
[1743825755261,9.32059,1811.8,1811.7,1.46466811]
[1743825757461,9.32059,1811.8,1811.7,0.00826811]
[1743825759862,3.2078,1811.8,1811.7,0.00826811]
[1743825760261,6.7048,1811.8,1811.7,0.00826811]
[1743825760460,6.7048,1811.8,1811.7,1.51766811]
[1743825760660,3.497,1811.8,1811.7,1.51766811]
[1743825763871,4.60129,1811.8,1811.7,1.51766811]
[1743825764467,5.33159,1811.8,1811.7,1.51766811]
[1743825766674,3.497,1811.8,1811.7,1.51766811]
[1743825774677,3.497,1811.8,1811.7,2.27226811]
[1743825776677,3.497,1811.8,1811.7,2.96697076]
[1743825777180,3.497,1811.8,1811.7,2.27226811]
[1743825778279,3.497,1811.8,1811.7,2.96704215]
[1743825781781,6.07919,1811.8,1811.7,0.70304215]
[1743825782376,6.07919,1811.8,1811.7,0.00826811]
[1743825784484,9.28699,1811.8,1811.7,0.00826811]
[1743825791286,6.07919,1811.8,1811.7,0.00826811]
[1743825791483,9.28699,1811.8,1811.7,0.00826811]
[1743825794899,11.78699,1811.8,1811.7,0.00826811]
[1743825795396,11.88660496,1811.8,1811.7,0.00826811]
[1743825795898,11.78699,1811.8,1811.7,0.00826811]
[1743825796099,11.88660699,1811.8,1811.7,0.00826811]
[1743825798498,9.38660699,1811.8,1811.7,0.00826811]
[1743825798900,5.88960699,1811.8,1811.7,0.00826811]
[1743825799100,9.38560699,1811.8,1811.7,0.00826811]
[1743825799794,9.28599,1811.8,1811.7,0.00826811]
[1743825799995,9.38560479,1811.8,1811.7,0.00826811]
[1743825800692,9.38560387,1811.8,1811.7,0.00826811]
[1743825801001,9.38560485,1811.8,1811.7,0.00826811]
[1743825803298,5.78999,1811.8,1811.7,0.00826811]
[1743825803496,9.28599,1811.8,1811.7,0.00826811]
[1743825803696,9.28599,1811.8,1811.7,1.42016811]
[1743825803904,7.80809,1811.8,1811.7,1.42016811]
[1743825805204,9.22459,1811.8,1811.7,1.42016811]
[1743825806608,9.22459,1811.8,1811.7,0.00826811]
[1743825806809,9.32422869,1811.8,1811.7,0.00826811]
[1743825807101,9.32422775,1811.8,1811.7,0.00826811]
[1743825809309,9.32422964,1811.8,1811.7,0.00826811]
[1743825811211,9.32422544,1811.8,1811.7,0.00826811]
[1743825812710,9.32422673,1811.8,1811.7,0.00826811]
[1743825813915,6.11642673,1811.8,1811.7,0.00826811]
[1743825814214,9.32422673,1811.8,1811.7,0.00826811]
[1743825816115,9.32423849,1811.8,1811.7,0.00826811]
[1743825817713,9.32424221,1811.8,1811.7,0.00826811]
[1743825818514,4.41174221,1811.8,1811.7,0.00826811]
[1743825818716,7.90774221,1811.8,1811.7,0.00826811]
[1743825818913,7.90774221,1811.8,1811.7,1.40336811]
[1743825819113,7.80809,1811.8,1811.7,1.40336811]
[1743825822013,4.31209,1811.8,1811.7,1.40336811]
[1743825822218,7.80809,1811.8,1811.7,1.40336811]
[1743825822419,6.7038,1811.8,1811.7,1.40336811]
[1743825823115,7.80809,1811.8,1811.7,1.40336811]
[1743825824415,7.80809,1811.8,1811.7,0.00826811]
[1743825824617,7.90777252,1811.8,1811.7,0.00826811]
[1743825824915,8.67007252,1811.8,1811.7,0.00826811]
[1743825825818,8.57039,1811.8,1811.7,0.00826811]
[1743825826030,8.57039,1811.8,1811.7,1.41106811]
[1743825826731,8.67007456,1811.8,1811.7,1.41106811]
[1743825827222,8.57039,1811.8,1811.7,1.41106811]
[1743825828827,4.31209,1811.8,1811.7,1.41106811]
[1743825829021,7.80809,1811.8,1811.7,2.12856811]
[1743825833925,6.7038,1811.8,1811.7,2.12856811]
[1743825834129,3.496,1811.8,1811.7,2.12856811]
[1743825834426,4.60029,1811.8,1811.7,2.12856811]
[1743825834727,3.496,1811.8,1811.7,2.12856811]
[1743825835125,4.60029,1811.8,1811.7,2.12856811]
[1743825835423,3.496,1811.8,1811.7,2.12856811]
[1743825838327,4.60029,1811.8,1811.7,2.12856811]
[1743825842123,63.05721054,1812.4,1811.7,17.31836811]
[1743825842124,25.49338054,1812.4,1811.7,17.31836811]
[1743825842435,18.40730054,1812.4,1812.3,4.31178]
[1743825842631,14.54395054,1812.4,1812.3,11.68372763]
[1743825842934,9.01349054,1812.4,1812.3,12.37814954]
[1743825843130,3.95950054,1812.4,1812.3,12.42379943]
[1743825843328,3.38450054,1812.4,1812.3,12.42379943]
[1743825843528,0.62414054,1812.4,1812.3,12.42379943]
[1743825844331,5.4e-07,1812.4,1812.3,12.42379943]
[1743825845222,0.00826811,1812.5,1812.4,1.10392]
[1743825845423,0.00826811,1812.5,1812.4,2.60386268]
[1743825845625,0.00826811,1812.5,1812.4,5.10386268]
[1743825846129,0.00826811,1812.5,1812.4,5.82576268]
[1743825846335,0.00826811,1812.5,1812.4,5.84034077]
[1743825847228,1.4274,1813.2,1813.0,1.10353]
[1743825847431,1.4274,1813.2,1813.0,4.31133]
[1743825848836,1.4274,1813.2,1813.0,5.03253]
[1743825849036,1.4274,1813.2,1813.1,1.1035]
[1743825849339,1.4274,1813.2,1813.0,5.03253]
[1743825850331,1.4274,1813.2,1813.1,1.1035]
[1743825851031,0.00826811,1813.3,1813.2,1.10344]
[1743825851229,0.00826811,1813.3,1813.2,5.03204]
[1743825862347,0.00826811,1813.3,1813.2,5.86094755]
[1743825863343,0.00826811,1813.3,1813.2,5.03204]
[1743825863645,0.00826811,1813.3,1813.2,5.86149594]
[1743825866249,8.11e-06,1813.3,1813.2,5.86149594]
[1743825866448,8.11e-06,1813.3,1813.2,8.36149594]
[1743825866848,8.11e-06,1813.3,1813.2,5.86149594]
[1743825867247,8.11e-06,1813.3,1813.2,5.8629635]
[1743825867547,8.11e-06,1813.3,1813.2,6.55046917]
[1743825868348,8.11e-06,1813.3,1813.2,7.12258212]
[1743825868951,8.11e-06,1813.3,1813.2,7.12433233]
[1743825870152,8.11e-06,1813.3,1813.2,7.86853233]
[1743825870850,8.11e-06,1813.3,1813.2,7.85994605]
[1743825872160,0.7577,1813.5,1813.4,1.10331]
[1743825872353,0.7577,1813.5,1813.4,9.26031038]
[1743825872555,0.7577,1813.5,1813.4,9.94781605]
[1743825873956,1.5,1813.5,1813.4,9.94781605]
[1743825874361,1.5,1813.5,1813.4,9.95095518]
[1743825874662,1.5,1813.5,1813.4,9.95314529]
[1743825875363,2.9623,1813.5,1813.4,9.95314529]
[1743825876464,2.9623,1813.5,1813.4,9.95448694]
[1743825877064,2.9623,1813.5,1813.4,9.95148694]
[1743825878367,2.9623,1813.5,1813.4,9.92484169]
[1743825880167,2.9623,1813.5,1813.4,9.92520833]
[1743825881969,2.9623,1813.5,1813.4,9.91719636]
[1743825882965,2.9623,1813.5,1813.4,6.36719636]
[1743825883165,6.56555,1813.5,1813.4,1.48784008]
[1743825883970,6.56555,1813.5,1813.4,1.48848044]
[1743825884367,6.56555,1813.5,1813.4,0.68750567]
[1743825884571,6.56555,1813.5,1813.2,3.2078]
[1743825884868,1.4275,1813.4,1813.3,0.77243185]
[1743825885071,1.4275,1813.4,1813.3,1.46647693]
[1743825885673,1.4275,1813.4,1813.3,0.69404508]
[1743825885877,1.4275,1813.4,1813.3,1.46631342]
[1743825887574,1.4275,1813.4,1813.3,1.46606378]
[1743825889278,1.4275,1813.4,1813.3,0.69404508]
[1743825891780,1.4275,1813.4,1813.2,1.10341]
[1743825891978,1.4275,1813.4,1813.2,4.31121]
[1743825893678,1.4275,1813.4,1813.2,3.2078]
[1743825894579,1.4275,1813.4,1813.2,4.31124]
[1743825895579,1.4275,1813.4,1813.2,1.10344]
[1743825895877,1.4275,1813.4,1813.2,3.2078]
[1743825897371,1.4275,1813.4,1813.1,1.10346]
[1743825897576,2.53082,1813.4,1813.2,3.90098097]
[1743825897777,1.4275,1813.4,1813.2,5.00442097]
[1743825897977,1.5178,1813.3,1813.2,4.31124]
[1743825898972,1.5178,1813.3,1813.2,5.00444659]
[1743825899581,1.5178,1813.3,1813.2,3.90100659]
[1743825900381,1.5178,1813.3,1813.2,5.00444659]
[1743825900573,1.5178,1813.3,1813.2,5.77601305]
[1743825900779,0.7577,1813.5,1813.3,1.10336]
[1743825900986,2.2152,1813.5,1813.3,1.10336]
[1743825901188,2.9614,1813.5,1813.3,1.10336]
[1743825901485,1.4182,1813.4,1813.3,1.10336]
[1743825901982,1.4182,1813.4,1813.3,1.79670418]
[1743825903176,1.4182,1813.4,1813.3,5.00450418]
[1743825903382,1.4182,1813.4,1813.3,3.90114418]
[1743825903682,1.4182,1813.4,1813.3,5.00452418]
[1743825904481,1.4182,1813.4,1813.3,3.90114418]
[1743825904879,2.52151,1813.4,1813.3,3.90114418]
[1743825905076,2.52151,1813.4,1813.3,0.69334418]
[1743825905275,2.52151,1813.4,1813.1,4.31129]
[1743825905583,1.4501,1813.3,1813.1,4.31129]
[1743825905783,0.7155,1813.2,1813.1,4.31129]
[1743825905977,1.4155,1813.2,1813.1,3.97977842]
[1743825906178,1.4155,1813.2,1813.1,5.08327842]
[1743825906378,1.4155,1813.2,1813.1,5.77692391]
[1743825908086,0.7155,1813.2,1813.1,5.77692391]
[1743825908287,0.7155,1813.2,1813.1,7.26852391]
[1743825909287,0.7155,1813.2,1813.1,7.2689718]
[1743825909585,0.7155,1813.2,1813.1,4.0611718]
[1743825912388,0.7155,1813.2,1813.1,4.62999715]
[1743825912594,0.7155,1813.2,1813.1,4.0611718]
[1743825912990,0.7155,1813.2,1813.1,4.62999993]
[1743825913188,3.53743555,1813.6,1813.3,1.10334]
[1743825913388,2.1701,1813.5,1813.3,4.31114]
[1743825913584,1.4145,1813.4,1813.3,4.31114]
[1743825913891,1.4145,1813.4,1813.3,5.08430515]
[1743825914486,1.4145,1813.4,1813.3,5.77895953]
[1743825914891,1.4145,1813.4,1813.3,5.77889819]
[1743825917285,1.4145,1813.4,1813.3,4.67555819]
[1743825918285,1.4145,1813.4,1813.3,5.77884478]
[1743825918484,1.4145,1813.4,1813.3,6.48554478]
[1743825919795,0.7556,1813.5,1813.4,1.10331]
[1743825919994,2.2197,1813.5,1813.4,1.10331]
[1743825920288,2.2197,1813.5,1813.4,1.79796438]
[1743825920693,2.2197,1813.5,1813.4,4.08984698]
[1743825921494,2.2197,1813.5,1813.4,4.08972271]
[1743825922594,2.2197,1813.5,1813.4,4.08962609]
[1743825924294,2.2197,1813.5,1813.4,4.08947244]
[1743825924592,0.00543555,1813.6,1813.5,1.10325]
[1743825924793,0.00543555,1813.6,1813.5,3.40115806]
[1743825925097,0.00543555,1813.6,1813.5,4.09581244]
[1743825926191,0.00543555,1813.6,1813.5,4.09562073]
[1743825926398,0.00543555,1813.6,1813.5,10.83042073]
[1743825927798,1.47603555,1813.6,1813.5,10.83042073]
[1743825929801,1.47603555,1813.6,1813.5,10.82986569]
[1743825930198,0.00543555,1813.6,1813.5,10.82986569]
[1743825930499,0.00543555,1813.6,1813.5,13.32974117]
[1743825930699,0.00543555,1813.6,1813.5,13.88874265]
[1743825931200,0.00543555,1813.6,1813.5,13.32974117]
[1743825932301,0.00543555,1813.6,1813.5,10.82974117]
[1743825933596,0.00543555,1813.6,1813.5,10.82917319]
[1743825934806,0.00543555,1813.6,1813.5,10.82717319]
[1743825938909,0.00543555,1813.6,1813.5,10.82417319]
[1743825939109,0.00543555,1813.6,1813.5,11.38265543]
[1743825940913,0.00543555,1813.6,1813.5,11.38267777]
[1743825942818,0.00543555,1813.6,1813.5,11.38268062]
[1743825944820,0.00543555,1813.6,1813.5,11.38273942]
[1743825946522,0.00543555,1813.6,1813.5,11.38297918]
[1743825948423,0.00543555,1813.6,1813.5,11.38338357]
[1743825950218,0.00543555,1813.6,1813.5,10.68872919]
[1743825950419,0.00543555,1813.6,1813.5,11.38254879]
[1743825952427,0.00543555,1813.6,1813.5,9.85714879]
[1743825953925,0.00543555,1813.6,1813.5,9.84886884]
[1743825954125,0.00543555,1813.6,1813.5,9.84927775]
[1743825954426,0.00543555,1813.6,1813.5,6.64147775]
[1743825954626,0.00543555,1813.6,1813.5,9.84927775]
[1743825957429,0.00543555,1813.6,1813.5,6.64147775]
[1743825957930,0.00543555,1813.6,1813.5,4.67374449]
[1743825958231,0.00543555,1813.6,1813.5,5.77699449]
[1743825958420,2.28883555,1813.6,1813.5,5.77699449]
[1743825959622,2.28883555,1813.6,1813.5,6.32818513]
[1743825962732,2.28883555,1813.6,1813.5,6.32830667]
[1743825964635,2.28883555,1813.6,1813.5,6.32824949]
[1743825964931,2.28883555,1813.6,1813.5,6.32824622]
[1743825966436,2.28883555,1813.6,1813.5,6.32831233]
[1743825968238,2.28883555,1813.6,1813.5,6.32824828]
[1743825968738,0.00543555,1813.6,1813.5,6.32824828]
[1743825969132,1.40703555,1813.6,1813.5,6.32824828]
[1743825972045,1.40703555,1813.6,1813.5,6.32819277]
[1743825973847,1.40703555,1813.6,1813.5,6.32817889]
[1743825975348,0.00543555,1813.6,1813.5,6.32817889]
[1743825975847,0.00543555,1813.6,1813.5,6.32802758]
[1743825976045,5.55e-06,1813.6,1813.5,6.32802758]
[1743825976239,0.7654,1814.0,1813.9,1.10301]
[1743825976445,0.7654,1814.0,1813.9,9.83678758]
[1743825977336,1.4623,1814.1,1814.0,1.10295]
[1743825977537,1.4623,1814.1,1814.0,3.12598976]
[1743825977744,1.4623,1814.1,1814.0,5.20585799]
[1743825978547,1.4623,1814.1,1814.0,4.65534933]
[1743825978848,1.4623,1814.1,1814.0,3.88371823]
[1743825979545,0.7669,1814.3,1814.2,1.10283]
[1743825979852,0.7669,1814.3,1814.2,4.31063]
[1743825980039,0.7669,1814.3,1814.2,7.81663]
[1743825980244,0.7669,1814.3,1814.2,8.58818949]
[1743825980647,0.7669,1814.3,1814.2,6.7138]
[1743825980846,2.1698,1814.3,1814.2,6.7138]
[1743825981046,2.1698,1814.3,1814.2,7.48539973]
[1743825981355,2.1698,1814.3,1814.2,8.58822973]
[1743825981646,2.1698,1814.3,1814.2,5.08222973]
[1743825981848,2.1698,1814.3,1814.2,4.31063]
[1743825982147,2.1698,1814.3,1814.2,3.97933932]
[1743825982452,2.1698,1814.3,1814.2,5.08216932]
[1743825982850,2.1698,1814.3,1814.2,5.77553755]
[1743825983254,2.1698,1814.3,1814.2,4.67270755]
[1743825983449,2.1698,1814.3,1814.2,5.00399823]
[1743825983857,2.1698,1814.3,1814.2,5.77470436]
[1743825984153,2.1698,1814.3,1814.2,5.00399823]
[1743825985857,2.1698,1814.3,1814.2,3.90116823]
[1743825986353,2.1698,1814.3,1814.2,3.2078]
[1743825987059,3.2078,1814.7,1814.2,3.2078]
[1743825987249,0.7089,1814.3,1814.2,4.31063]
[1743825987652,0.7089,1814.3,1814.2,5.00253621]
[1743825988661,0.7089,1814.3,1814.2,5.77264777]
[1743825990054,0.7089,1814.3,1814.2,5.00253621]
[1743825990361,0.7089,1814.3,1814.2,5.77246831]
[1743825991062,0.7089,1814.3,1814.2,5.00253621]
[1743825993262,0.7089,1814.3,1814.2,5.77244222]
[1743825993960,0.7089,1814.3,1814.2,5.77247434]
[1743825994164,0.7089,1814.3,1814.2,5.00253621]
[1743825994561,0.7089,1814.3,1814.2,3.89970621]
[1743825994760,0.7089,1814.3,1814.2,3.2078]
[1743825996764,0.7089,1814.3,1814.2,4.31063]
[1743825997366,0.7089,1814.3,1814.2,5.0028239]
[1743825998466,0.7089,1814.3,1814.2,4.31063]
[1743825998966,0.7089,1814.3,1814.2,3.90031767]
[1743826000270,0.7089,1814.3,1814.2,5.00314767]
[1743826000468,0.7089,1814.3,1814.2,3.90031767]
[1743826001270,0.7089,1814.3,1814.2,5.00314767]
[1743826001771,0.7089,1814.3,1814.2,3.90031767]
[1743826003370,0.7089,1814.3,1814.2,0.69251767]
[1743826003569,0.7089,1814.3,1814.2,3.90031767]
[1743826004373,0.7089,1814.3,1814.2,4.67251509]
[1743826005271,0.7089,1814.3,1814.2,4.672529]
[1743826005666,0.7089,1814.3,1814.2,5.775359]
[1743826006776,0.7089,1814.3,1814.2,4.672529]
[1743826007076,0.7089,1814.3,1814.2,4.67298935]
[1743826008776,0.7089,1814.3,1814.2,5.77581935]
[1743826008971,0.7089,1814.3,1814.2,4.67298935]
[1743826009480,0.7089,1814.3,1814.2,1.46518935]
[1743826009775,0.7089,1814.3,1814.2,4.67298935]
[1743826011277,0.7089,1814.3,1814.2,1.46518935]
[1743826011479,0.7089,1814.3,1814.2,4.67298935]
[1743826012873,0.7089,1814.3,1814.2,4.67302112]
[1743826013173,0.7089,1814.3,1814.2,3.90031767]
[1743826013779,2.1453,1814.3,1814.2,3.90031767]
[1743826015281,3.24807,1814.3,1814.2,3.90031767]
[1743826015875,3.24807,1814.3,1814.2,3.2078]
[1743826016081,2.1453,1814.3,1814.2,3.2078]
[1743826018184,2.1453,1814.3,1814.2,3.90174357]
[1743826018879,3.24807,1814.3,1814.2,3.90174357]
[1743826019878,2.1453,1814.3,1814.2,3.90174357]
[1743826020384,3.24807,1814.3,1814.2,3.90174357]
[1743826021283,3.24807,1814.3,1814.2,3.2078]
[1743826023078,2.1453,1814.3,1814.2,3.2078]
[1743826023474,2.1453,1814.3,1814.1,1.10288]
[1743826023677,1.4971,1814.2,1814.1,1.10288]
[1743826023878,1.4971,1814.2,1814.1,4.70163633]
[1743826024690,1.4971,1814.2,1814.1,3.59875633]
[1743826024987,1.4971,1814.2,1814.1,3.5988167]
[1743826026187,2.59993,1814.2,1814.1,3.5988167]
[1743826026391,6.51953,1814.2,1814.1,0.69416841]
[1743826026689,9.01953,1814.2,1814.1,0.69416841]
[1743826027086,1.10295,1814.0,1813.9,0.00826811]
[1743826027282,5.0234,1814.1,1813.9,0.00826811]
[1743826027483,2.26,1814.0,1813.9,0.00826811]
[1743826027787,3.36295,1814.0,1813.9,0.00826811]
[1743826028683,2.26,1814.0,1813.9,0.00826811]
[1743826028879,2.26,1814.0,1813.9,0.70195952]
[1743826030795,3.36295,1814.0,1813.9,0.70195952]
[1743826030987,2.26,1814.0,1813.9,0.70195952]
[1743826031187,3.36295,1814.0,1813.9,0.00826811]
[1743826033095,2.26,1814.0,1813.9,0.00826811]
[1743826036699,3.36295,1814.0,1813.9,0.00826811]
[1743826037188,2.26,1814.0,1813.9,0.00826811]
[1743826041603,2.26,1814.0,1813.9,0.70152437]
[1743826042205,2.26,1814.0,1813.9,0.00826811]
[1743826043204,2.26,1814.0,1813.9,0.70162088]
[1743826044006,2.26,1814.0,1813.9,0.00826811]
[1743826044807,2.26,1814.0,1813.9,0.70166429]
[1743826045808,2.26,1814.0,1813.9,1.80467429]
[1743826046309,2.26,1814.0,1813.9,0.70166429]
[1743826046809,2.26,1814.0,1813.9,0.00826811]
[1743826048009,2.26,1814.0,1813.9,1.11127811]
[1743826048209,2.26,1814.0,1813.9,2.52657811]
[1743826048509,2.26,1814.0,1813.9,3.22008586]
[1743826049609,2.26,1814.0,1813.9,3.95088586]
[1743826052912,2.26,1814.0,1813.9,2.84787586]
[1743826054111,2.26,1814.0,1813.9,3.62035501]
[1743826054608,2.26,1814.0,1813.9,2.11707586]
[1743826055206,2.9885,1814.0,1813.9,2.11707586]
[1743826055403,2.9885,1814.0,1813.9,1.80478586]
[1743826056007,2.9885,1814.0,1813.9,2.57751888]
[1743826058611,2.9885,1814.0,1813.9,2.57794961]
[1743826060214,2.9885,1814.0,1813.9,1.47493961]
[1743826060713,2.9885,1814.0,1813.9,2.57794961]
[1743826062308,2.9885,1814.0,1813.9,1.80478586]
[1743826062513,2.9885,1814.0,1813.9,2.57797946]
[1743826065214,2.9885,1814.0,1813.9,1.47496946]
[1743826066115,2.9885,1814.0,1813.9,1.47501474]
[1743826067317,2.9885,1814.0,1813.9,2.57802474]
[1743826067914,2.9885,1814.0,1813.9,2.57806453]
[1743826070017,2.9885,1814.0,1813.9,2.57809674]
[1743826070318,2.9885,1814.0,1813.9,2.57809233]
[1743826070717,2.9885,1814.0,1813.9,1.47508233]
[1743826071717,2.9885,1814.0,1813.9,1.47507902]
[1743826073114,2.9885,1814.0,1813.9,0.70177586]
[1743826077519,4.09145,1814.0,1813.9,0.70177586]
[1743826078921,2.9885,1814.0,1813.9,0.70177586]
[1743826079920,4.09145,1814.0,1813.9,0.70177586]
[1743826084722,7.29925,1814.0,1813.9,0.70177586]
[1743826085022,7.39914138,1814.0,1813.9,0.00826811]
[1743826089333,7.3991314,1814.0,1813.9,0.00826811]
[1743826089828,10.79325,1814.0,1813.9,0.00826811]
[1743826092826,9.6903,1814.0,1813.9,0.00826811]
[1743826093021,6.4825,1814.0,1813.9,0.00826811]
[1743826093226,7.58545,1814.0,1813.9,0.00826811]
[1743826096034,1.10316,1813.7,1813.5,3.2078]
[1743826096333,3.26099,1813.6,1813.5,3.2078]
[1743826096523,3.26099,1813.6,1813.5,3.90130615]
[1743826097427,3.26099,1813.6,1813.5,3.2078]
[1743826097825,1.10325,1813.5,1813.4,0.00826811]
[1743826098022,2.54555,1813.5,1813.4,0.00826811]
[1743826099326,3.24065,1813.5,1813.4,0.00826811]
[1743826102030,1.10338,1813.3,1813.2,3.2078]
[1743826102731,3.27628,1813.3,1813.2,3.2078]
[1743826104330,2.1729,1813.3,1813.2,3.2078]
[1743826105936,3.27628,1813.3,1813.2,3.2078]
[1743826106425,2.1729,1813.3,1813.2,3.2078]
[1743826109032,3.27628,1813.3,1813.2,3.2078]
[1743826111340,2.1729,1813.3,1813.2,3.2078]
[1743826112240,3.27628,1813.3,1813.2,3.2078]
[1743826114344,3.27628,1813.3,1813.1,4.65286811]
[1743826114541,1.4013,1813.2,1813.1,4.65286811]
[1743826114841,2.1029,1813.2,1813.1,4.65286811]
[1743826118143,2.1029,1813.2,1813.1,1.44506811]
[1743826118347,2.1029,1813.2,1813.1,2.54856811]
[1743826118748,2.1029,1813.2,1813.1,1.44506811]
[1743826120046,2.1029,1813.2,1813.1,4.65286811]
[1743826120346,4.59735,1813.4,1813.1,5.75636811]
[1743826120347,3.494,1813.4,1813.1,5.75636811]
[1743826120548,2.1361,1813.3,1813.1,5.75636811]
[1743826121549,2.1361,1813.3,1813.1,4.65286811]
[1743826123750,1.4675,1813.2,1813.1,4.65286811]
[1743826123951,1.4675,1813.2,1813.1,5.34588842]
[1743826124450,1.4675,1813.2,1813.1,2.13808842]
[1743826124651,1.4675,1813.2,1813.1,5.34588842]
[1743826125254,1.4675,1813.2,1813.1,6.11794765]
[1743826125754,1.4675,1813.2,1813.1,7.22144765]
[1743826126147,1.4675,1813.2,1813.1,6.11794765]
[1743826126343,1.4675,1813.2,1813.1,7.22144765]
[1743826126547,1.4675,1813.2,1813.1,6.11794765]
[1743826128545,1.4675,1813.2,1813.1,7.22144765]
[1743826128854,1.4675,1813.2,1813.1,4.01364765]
[1743826129958,1.4675,1813.2,1813.1,2.91014765]
[1743826130761,1.4675,1813.2,1813.1,2.91126566]
[1743826132167,1.4675,1813.2,1813.1,4.01476566]
[1743826135871,1.4675,1813.2,1813.1,2.91126566]
[1743826137770,1.4675,1813.2,1813.1,4.01476566]
[1743826138273,1.4675,1813.2,1813.1,4.0148926]
[1743826138462,0.738,1813.3,1813.2,1.10344]
[1743826138668,0.738,1813.3,1813.2,2.56976449]
[1743826138971,2.1423,1813.3,1813.2,4.09146449]
[1743826139274,2.892,1813.3,1813.2,4.09146449]
[1743826139573,2.892,1813.3,1813.2,7.29926449]
[1743826139773,3.494,1813.5,1813.4,1.1033]
[1743826140080,5.6862,1813.5,1813.4,1.87650604]
[1743826140272,5.6862,1813.5,1813.4,1.87650773]
[1743826140471,5.6862,1813.5,1813.4,1.1033]
[1743826140773,5.6862,1813.5,1813.4,1.79632031]
[1743826141378,2.1922,1813.5,1813.4,2.56953055]
[1743826141674,2.1922,1813.5,1813.4,1.79632031]
[1743826141972,2.1922,1813.5,1813.4,2.5693039]
[1743826142170,2.1922,1813.5,1813.4,1.79632031]
[1743826142370,2.1922,1813.5,1813.4,2.56912786]
[1743826143178,2.1922,1813.5,1813.4,2.56912027]
[1743826144078,2.1922,1813.5,1813.4,1.79632031]
[1743826145377,2.1922,1813.5,1813.4,0.69302031]
[1743826145775,2.1922,1813.5,1813.3,1.10334]
[1743826146077,2.1798,1813.4,1813.3,1.10334]
[1743826146278,2.1798,1813.4,1813.3,1.79744495]
[1743826146881,2.1798,1813.4,1813.3,2.56992324]
[1743826147179,2.1798,1813.4,1813.3,1.79744495]
[1743826149075,2.1798,1813.4,1813.3,2.56995221]
[1743826149275,2.1798,1813.4,1813.3,3.97425221]
[1743826149479,2.1798,1813.4,1813.3,2.56995221]
[1743826149683,2.1798,1813.4,1813.3,2.56994089]
[1743826150078,2.1798,1813.4,1813.3,2.56993663]
[1743826150579,2.1798,1813.4,1813.3,2.56993378]
[1743826152083,2.1798,1813.4,1813.3,1.79744495]
[1743826152679,2.1798,1813.4,1813.3,2.56991581]
[1743826153180,2.1798,1813.4,1813.3,1.79744495]
[1743826155183,2.1798,1813.4,1813.3,2.56992153]
[1743826158082,2.1798,1813.4,1813.3,2.56988932]
[1743826159882,2.1798,1813.4,1813.3,1.79744495]
[1743826160086,2.1798,1813.4,1813.3,2.56989863]
[1743826161886,2.1798,1813.4,1813.3,2.56997202]
[1743826162389,2.1798,1813.4,1813.3,2.57001839]
[1743826163887,2.1798,1813.4,1813.3,2.5700641]
[1743826166689,0.7039,1813.5,1813.4,1.10331]
[1743826166881,0.7039,1813.5,1813.4,6.5362341]
[1743826167389,0.7039,1813.5,1813.4,5.7778341]
[1743826167687,1.4008,1813.5,1813.4,5.7778341]
[1743826171389,1.4008,1813.5,1813.4,5.77798237]